{"text_format":"3","workbook":"xlsx","n_sheets":4,"sheets":["汇总表","卫生间装饰","卫生间安装","品牌品质要求"],"not_rendered":{"images":2,"defined_names":4},"read":"whole","date_system":"1900"}

{"sheet":"汇总表","index":0,"n_rows":6,"n_cols":5,"rows_kept":6,"merged":[[0,0,0,4],[5,0,5,4]]}
["2023年“S”项目公厕装修工程报价汇总表"]
["序号","项目名称","招标控制价\n（元）","班组报价\n（元）","备注"]
[1,"卫生间装饰",{"$f":"卫生间装饰!G62","v":{"v":1129273.8,"d":"1129273.80"}}]
[2,"卫生间安装",{"$f":"卫生间安装!G79","v":186041.48}]
[3,"合计：",{"$f":"SUM(C3:C4)","v":1315315.28}]
["特别说明：\n1、工程招标和分包范围：本工程卫生间的装饰、安装。卫生洁具甲供（具体甲供材详见清单明细表），其余材料由投标人提供；\n2.投标人根据施工工艺、工序及国家现行规范自行踏勘现场后综合考虑进行报价，结算时不作调整;\n3.全费用综合单价包含人工费、所有材料费（含辅材和周转材料费）、机械设备费、工具器具费、临时设施及措施费、大型机械进出场及场内转运费、下车费、吊装费、规费、管理费、配合费、安全文明施工费、以及各种风险费、保险费、施工过程中办理的各种手续费、降水费、排水费、各种检测费、利润、税费等完成该工作所需的全部费用，结算时无论涨跌、工程量增减或其它任何风险因素，均不作调整。。\n4.施工中所用临时配电箱、用电线路、开关箱、机具等从建设方提供的接口处接出，所有材料、设备及安装费用含在综合单价中。"]

{"sheet":"卫生间装饰","index":1,"n_rows":62,"n_cols":10,"rows_kept":62,"merged":[[0,0,1,9],[61,0,61,5]]}
["2023年“S”项目公厕装饰工程量清单与报价表"]
[]
["序号","项目名称","项目特征描述","计量\r\n单位","工程量","全费用单价限价（元）","限价合价","班组所报全费用单价（元）","合价（元）","备注"]
["一、不上人屋面"]
[1,"20厚1:2.5水泥砂浆找平（屋1）","1.名称：水泥砂浆保护层 \n2.砂浆：20厚1:2.5水泥砂浆找平 \n3.其他:满足设计 及施工验收规范","m2",656,22,{"$f":"E5*F5","v":14432}]
[2,"3+3双层SBS改性沥青防水卷材防水层（屋1）","1.名称：3+3双层SBS改性沥青防水卷材防水层（屋1）\n2.说明：防水附加增强层设置详见设计施工图，包含在项目综合单价内\n3.其它：未尽事宜满足设计及现行技术、质量验收规范要求\n4.该单价为单层防水单价","m2",1312,54,{"$f":"E6*F6","v":70848}]
[3,"20厚找平层","1.20厚1:2.5水泥砂浆找平\n2.其余做法：满足设计及施工验收规范要求","m2",656,23,{"$f":"E7*F7","v":15088}]
[4,"陶土块瓦（屋1）","1.名称：陶土块瓦\n2.龙骨：顺水条40x20(h)、挂瓦条30x30(h)间距满足及规范设计要求\n3.檐口处参见西南18J202第21页1大样\n4.其余做法要求：满足设计及现行施工技术、质量验收规范要求","m2",656,90,{"$f":"E8*F8","v":59040}]
["二、外墙面装饰"]
[5,"16厚水泥砂浆抹灰（外1、外2）","1.做法：8厚1:3水泥砂浆打底,两次成活、8厚1:3水泥砂浆找平\n2.基层墙体平整\n3.其他:满足设计 及施工验收规范","m2",715.76,24,17178.24]
[6,"1.5厚JS-聚合物水泥防水涂料(I型)（外1、外2）","1.名称：防水涂料 \n2. 防水膜品种:1.5厚JS-聚合物水泥防水涂料(I型)（外1、外2）；\n3.涂膜厚度、遍数:1.5mm，遍数详设计 \n4.其余做法：满足设计及施工验收规范要求","m2",715.76,32,22904.32]
[7,"11厚水泥砂浆找平层（外1）","1.做法：5厚1:3水泥砂浆找平；6 厚聚合物水泥防水砂浆一道\n2.其他:满足设计 及施工验收规范","m2",700,20,14000]
[8,"16mm纤维增强水泥外墙装饰板（外1）","1.立柱：100*50*5热浸镀钢立柱（Q235B）间距满足设计及规范要求，与横撑由L50*4热浸镀锌角钢连接件连接，由2-M6不锈钢螺栓组件（A2-70)固定。\n2.横撑：L50*4热浸镀锌角钢，布置间距满足设计及规范要求。\n3.连接节点处由2mm三元乙丙橡胶垫、ST4.8*19不锈钢自攻自钻钉间距150mm布置、铝合金通长挂件，阳极氧化6063-t5、三元乙丙橡胶条构成；装饰板连接处由硅酮耐候密封胶（颜色按封样）+泡沫棒密封\n4.龙骨与墙体连接方式：(200+200)*200*8mm后补钢埋板热浸镀（Q235B）由4-M12*130后切底式机械锚栓（有效锚深80mm）与墙体固定；L型6mm热浸镀钢转接件（Q235B）L=100mm与立柱固定\n5.其他:满足设计 及施工验收规范","m2",700,350,245000]
[9,"6 厚聚合物水泥防水砂浆一道（外2）","1.做法：5厚抗裂砂浆+双层耐碱玻璃纤维网格布；6 厚聚合物水泥防水砂浆一道\n2.其他:满足设计 及施工验收规范","m2",15.76,24,378.24]
[10,"真石漆二遍（外2）","1.刷外墙真石漆二遍,喷甲基硅醇钠憎水剂、外墙耐水柔性腻子两道\n2.其他:满足设计 及施工验收规范","m2",15.76,90,1418.4]
["三、地面装饰"]
[11,"100厚C15混凝土垫层（地1、地2）","1.厚度：100mm厚\n2.混凝土强度等级：C15商品砼，混凝土泵送方式投标人自行考虑，包含在综合单价内，不再另计；\n3.其余做法要求：满足设计及现行施工技术、质量验收规范要求","m3",32.8,460,15088]
[12,"1:3水泥砂浆找坡兼找平层,最薄处20厚,坡向地漏(排水沟)（地1、地2）","1.名称：水泥砂浆保护层 \n2.砂浆：1:3水泥砂浆找坡兼找平层,最薄处20厚,坡向地漏(排水沟)\n3.其他:满足设计 及施工验收规范","m2",328,20,{"$f":"E18*F18","v":6560}]
[13,"2+2厚JS-聚合物水泥防水涂料(Ⅱ型)防水层上翻建筑完成面以上300（地1）","1.名称：防水涂料 \n2. 防水膜品种:2+2厚JS-聚合物水泥防水涂料(Ⅱ型)防水层上翻建筑完成面以上300（地1）；\n3.涂膜厚度、遍数:4mm，遍数2遍 \n4.其余做法：满足设计及施工验收规范要求\n5.该单价为单层2厚JS防水单价","m2",656,50,32800]
[14,"8厚防滑地砖面层,同色水泥浆擦缝（地1、地2）","1.粘接层：20厚1:2干硬性水泥砂浆结合层上洒水泥粉并洒清水适量\n2.施工部位、面层颜色:详见设计图\n3.其它：未尽事宜满足设计及现行技术、质量验收规范要求","m2",328,90,29520]
[15,"2厚JS-聚合物水泥防水涂料(Ⅱ型)防水层上翻建筑完成面以上300（地2）","1.名称：防水涂料 \n2. 防水膜品种:2厚JS-聚合物水泥防水涂料(Ⅱ型)防水层上翻建筑完成面以上300（地2）；\n3.涂膜厚度、遍数:2mm\n4.其余做法：满足设计及施工验收规范要求","m2",76,50,3800]
["四、内墙墙面装饰"]
[16,"15厚1:3水泥砂浆找平层（内1）","1.做法：15厚1:3水泥砂浆找平层（内1）\n2.基层墙体平整\n3.其他:满足设计 及施工验收规范","m2",1116,20,22320]
[17,"1.5厚聚合物水泥防水涂料(II型)涂满侧墙）（内1、内2）","1.名称：防水涂料 \n2. 防水膜品种:1.5厚聚合物水泥防水涂料(II型)涂满侧墙）（内1、内2）；\n3.涂膜厚度、遍数:1.5mm，遍数详设计 \n4.其余做法：满足设计及施工验收规范要求","m2",1148,32,36736]
[18,"墙砖/釉面砖（内1）","1.面砖厚度：300*600mm,10mm厚，灰色\n2.粘接层厚度及强度综合考虑\n3.5厚1:1水泥砂浆加水重20%建筑胶镶贴(高于吊顶100)\n4.其余做法：满足设计及施工验收规范要求","m2",1116,90,100440]
[19,"12厚1:3水泥砂浆找平层（内2）","1.12厚1:3水泥砂浆打底扫毛,分两次抹、专用界面剂一道甩毛\n2.其他:满足设计 及施工验收规范","m2",32,20,640]
[20,"6厚1:2.5水泥砂浆罩面（内2）","1.6厚1:2.5水泥砂浆罩面（内2）\n2.其他:满足设计 及施工验收规范","m2",32,13,416]
[21,"1厚大白浆（内2）","1.1厚大白浆（内2）\n2.其他:满足设计 及施工验收规范","m2",32,30,960]
["五、天棚装饰"]
[22,"1.5厚聚合物水泥防水涂料(II型)（棚2）","1.名称：防水涂料 \n2. 防水膜品种:1.5厚聚合物水泥防水涂料(II型)（棚2）；\n3.涂膜厚度、遍数:1.5mm，1遍\n4.位置：顶棚 \n5.其余做法：满足设计及施工验收规范要求","m2",396,32,12672]
[23,"400*400铝扣板吊顶","1.龙骨：天棚吊顶 装配式U形轻钢龙骨，间距及规格详见设计要求\n2.面层：铝合金扣板，铝扣板尺寸300X600，厚度1.0mm，主龙骨间距1200，规格DU50×15×1.2mm。次龙骨间距300或600，规格DC60×27×0.6(mm)\n3.其余做法：满足设计及施工验收规范要求","m3",328,135,44280]
["六、踢脚线"]
[24,"20厚找平层","1.刷素水泥浆一道,内掺建筑胶\n2.17厚2:1:8水泥石灰砂浆,分两次抹灰\n3.3厚1:1水泥砂浆加水重20%建筑胶镶贴\n4.其余做法：满足设计及施工验收规范要求","m2",20,25,500]
[25,"8厚面砖,水泥浆擦缝,高120","1.面砖厚度：8厚\n2.粘接层厚度及强度综合考虑\n3.面砖高度：120mm\n4.其余做法：满足设计及施工验收规范要求","m2",20,110,2200]
["七、门窗"]
[26,"成品乙级防火门YFM1022","1.门类型：成品乙级防火门YFM1022\n2.洞口尺寸：1000*2200mm\n3.安装闭门器和顺序器以及常开的防火门须安装的信号控制关闭和反馈装置的费用综合考虑（防火门安装闭门器，双扇防火门还应安装顺序器）\n4.五金配件、油漆等综合考虑，达到消防验收标准\n5.其他：满足设计及施工验收规范","樘",4,{"$f":"580*2.2","v":1276},5104]
[27,"成品套装木门M1121","1.门类型：成品木质门(含门套及油漆),颜色综合且需符合设计与业主的要求\n2.洞口尺寸：综合\n3.其他：五金配件、紧固件、门锁、定门器、密封材料、观察窗、发泡剂、埋件、连接件、油漆品种、刷漆遍数等辅材综合考虑在综合单价中，门窗安装应满足其强度、热工、声学及安全性等技术要求，具体做法详见设计施工图门大样图，350高护门板；门扇外侧和里侧均应设置扶手，且采用杠杆式门把手。","樘",12,{"$f":"680*1.1*2.1","v":1570.8},18849.6]
[28,"无障碍单扇门ZDM2215（折叠篱笆门）","1.门类型：无障碍单扇门ZDM2215（折叠篱笆门）,颜色综合且需符合设计与业主的要求\n2.洞口尺寸：综合\n3.其他：五金配件、紧固件、门锁、定门器、密封材料、观察窗、发泡剂、埋件、连接件、油漆品种、刷漆遍数等辅材综合考虑在综合单价中，门窗安装应满足其强度、热工、声学及安全性等技术要求，具体做法详见设计施工图门大样图，350高护门板；门扇外侧和里侧均应设置扶手，且采用杠杆式门把手。","樘",1,{"$f":"350*3.3","v":1155},1155,null,null,{"$f":"_xlfn.DISPIMG(\"ID_D7B6B1083AAB49BB9171CDD7AC184E12\",1)","v":"=DISPIMG(\"ID_D7B6B1083AAB49BB9171CDD7AC184E12\",1)"}]
[29,"磨砂玻璃窗C0626","1.构造：下部磨砂玻璃，上部铝合金百叶\n2.洞口尺寸：综合\n3.玻璃厚度：6+12+6mm\n4.其他：五金配件、紧固件、门锁、定门器、密封材料、观察窗、发泡剂、埋件、连接件、油漆品种、刷漆遍数等辅材综合考虑在综合单价中，门窗安装应满足其强度、热工、声学及安全性等技术要求，具体做法详见设计施工图门大样图","m2",31.2,250,7800]
[30,"铝合金窗C1213","1.窗类型：铝合金外窗，磨砂玻璃\n2.窗洞尺寸：详见施工图\n3.材料种类： 综合考虑\n4.玻璃品种、厚度：6+12+6mm\n5.五金材料：限位器、窗锁、执手锁、滑撑、毛条等所有配件\n6.说明：采用塑钢节能门窗必须使用具有节能标识并经省住建局和泸州市住建局登记备案的门窗产品，所有检测费用综合考虑进入综合单价\n7.其它：未尽事宜满足设计及现行技术、质量验收规范要求","m2",6.24,600,3744]
[31,"成品铝合金防风雨百叶","1.名称：成品铝合金防风雨百叶\n2.做法：详设计\n3.说明：部位及颜色详见设计施工图、开启方式综合\n4.其它：未尽事宜满足设计及现行技术、质量验收规范要求","m2",26.96,380,10244.8]
["八、其他"]
[32,"镜面","1.做法：详国标16J914-1，XT25页③，宽度同洗手台\n5.其它：未尽事宜满足设计及现行技术、质量验收规范要求","m2",20,145,{"$f":"E43*F43","v":2900}]
[33,"成品天沟","1.材质：1.0mm厚铝合金\n2.尺寸：上口宽200mm，深160mm，底宽120mm\n3.安装位置：檐口处\n4.固定方式综合考虑\n5.其它：未尽事宜满足设计及现行技术、质量验收规范要求","m",116.8,80,9344]
[34,"150×100仿木纹2.5mm铝单板装饰线条","1.间距：300mm\n2.颜色：150x100铝合金方管刷仿木漆 色号：8.1YR5.5/4.8\n3.油漆遍数及固定方式：综合考虑\n4.其它：未尽事宜满足设计及现行技术、质量验收规范要求","m",808,60,48480]
[35,"2.5mm铝单板氟碳喷涂（颜色综合）","1.颜色：综合考虑，颜色综合且需符合设计与业主的要求\n2.油漆遍数及固定方式：综合考虑\n3.其它：未尽事宜满足设计及现行技术、质量验收规范要求","m2",30,450,13500]
[36,"散水","1.散水做法参照详散水西南18J812-7-4 \n2.100mm厚C15混凝土垫层\n3.模板及混凝土泵送方式投标人自行考虑\n3.其余做法要求：满足设计及现行施工技术、质量验收规范要求。","m2",105.6,50,5280]
[37,"散水排水沟","1.排水沟详西南18J812-4-2a/\n2.100mm厚C10混凝土垫层（模板综合考虑）\n3.M5水泥砂浆砖砌\n4.20厚1:2.5水泥砂浆抹灰\n5.雨篦子满足图集及设计要求\n6.模板及混凝土泵送方式投标人自行考虑\n7.其余做法要求：满足设计及现行施工技术、质量验收规范要求。","m",363.2,310,112592]
[38,"坡道","1.入口坡道（水泥砂浆金刚砂面层/碎石垫层）\n2.做法详见图集详西南18J812第8页第2大样/D大样\n3.模板及混凝土泵送方式投标人自行考虑\n4.其余做法要求：满足设计及现行施工技术、质量验收规范要求。","m2",26.4,80,2112]
[39,"建筑物沉降观测点","1.安装位置：详见图纸、室外地坪以上0.5m\n2.材质：φ20顶面磨圆\n3.埋深：不低于160mm\n4.其余做法要求：满足设计及现行施工技术、质量验收规范要求。","个",4,40,160]
[40,"复合树脂板隔断","1.复合树脂板隔断\n2.综合单价包括运输、油漆、五金件、门扣等全部费用\n3.具体做法:详国标16J914-1-XT9\n4.其它：满足施工图设计要求及施工验收规范要求","套",64,800,51200]
[41,"小便池复合树脂隔板","1.复合树脂板隔断\n2.综合单价包括运输、油漆、五金件、门扣等全部费用\n3.具体做法:详见设计\n4.其它：满足施工图设计要求及施工验收规范要求","套",12,150,1800]
[42,"洗漱台","1.台柜规格：详见设计施工图 \n2.说明：不含洗手盆\n4.包含但不限于：面层处理、面层、连接件（连接构造）、支架、油漆、成品保护\n4.其它：具体做法详见设计施工图，未尽事宜满足设计及现行技术、质量验收规范要求","m2",14.76,530,7822.8]
[43,"φ40×1.5mm 不锈钢钢管扶手","1.材质：不锈钢钢管\n2.尺寸：φ40×1.5mm\n3.安装位置固定方式：综合考虑\n4.其它：具体做法详见设计施工图，未尽事宜满足设计及现行技术、质量验收规范要求","m",44.48,55,2446.4]
[44,"可折叠的多功能台","1.材质：可折叠的多功能台，详国标16J914-1，H3页\n2.安装位置固定方式：综合考虑\n3.其它：具体做法详见设计施工图，未尽事宜满足设计及现行技术、质量验收规范要求","套",4,250,1000]
[45,"可折叠的婴儿座椅","1.材质：可折叠的婴儿座椅，详国标12J926，R8页\n2.安装位置固定方式：综合考虑\n3.其它：具体做法详见设计施工图，未尽事宜满足设计及现行技术、质量验收规范要求","套",4,350,1400]
[46,"卫生纸盒","1.材质：卫生纸盒，详国标16J914-1，XT29页①\n2.安装位置固定方式：综合考虑\n3.其它：具体做法详见设计施工图，未尽事宜满足设计及现行技术、质量验收规范要求","套",48,40,1920]
[47,"配管开线槽（宽度综合）","1.名称 ：电线配管开线槽\n2.材质 ：综合考虑\n3.规格 ：综合考虑","m",800,15,12000]
[48,"综合脚手架","1.建筑结构形式:框架、框剪等综合\n2.檐口高度:综合脚手架 多层建筑(檐口高度) 综合考虑\n3.脚手架支架材料:钢管、竹、木支架综合\n4.本项目投标人应根据施工经验,现场实际情况和企业自身情况综合报价,不论采用何种支架方式综合报价\n5.该费用实际产生时计取\n5.本项目工程量以建筑面积计算","m2",408,20,8160]
[49,"移动装修脚手架","1.名称：移动脚手架\n2.高度：详见设计图纸\n3.该项为4个卫生间装饰及安装工程移动脚手架使用包干费用\n4.使用时进行计取该费用\n5.其它：具体做法详见设计施工图，未尽事宜满足设计及现行技术、质量验收规范要求。","项",1,8000,8000]
[50,"双排外脚手架","1.脚手架高度：脚手架形式综合考虑。                                                                                                                                                                                                                     2.脚手架类型：钢管脚手架 ，斜道、上料平台、安全网等投标人综合考虑，不再另行计算。                                                                                                                                                      3.脚手架材料：钢管、脚手板、安全网、水平防护、立面防护网的材质、工艺等符合相关安全及施工验收规范要求                                                                                                                                                             4.材料场内运输、转运费用已综合考虑在单价中                                                                                                                  5.工程量计算：按建筑物外围垂直水平投影面积计算。","m2",768,30,23040]
["合  计",{"$nulls":5},{"$f":"SUM(G4:G61)","v":1129273.8}]

{"sheet":"卫生间安装","index":2,"n_rows":79,"n_cols":10,"rows_kept":79,"merged":[[0,0,1,9],[78,0,78,5]]}
["2023年“S”项目公厕安装工程量清单与报价表"]
[]
["序号","项目名称","项目特征描述","计量\r\n单位","工程量","全费用单价限价（元）","限价合价","班组所报全费用单价（元）","合价（元）","甲供材损耗"]
["一、卫生间给排水"]
[1,"管沟土石方开挖","1.土壤类别：综合考虑； \n2.挖土类型：包括沟、槽和坑项目，土石方种类和深度综合考虑，\n3.开挖方式、素土夯实、场地平整综合考虑 \n4.弃土运距及费用：综合考虑，不再另计。","m3",800,15,{"$f":"E5*F5","v":12000}]
[2,"回填方","1.密实度要求：满足设计及规范要求； \n2.填方材料品种：满足回填土质要求的土石料； \n3.填方粒径要求：符合规范和图纸要求； \n4.填方来源、运距：投标单位自行考虑。","m3",600,8.5,{"$f":"E6*F6","v":5100}]
[3,"DN15 PP-R给水管","1.材质及规格 ：DN15 PP-R给水管 1.25MPa、管道消毒、冲洗\n2.连接形式 ：综合考虑\n3.铺设深度 ：符合设计要求\n4.管道检验及试验要求：按照《给水排水管道工程施工及验收规范》要求执行。\n5.综合单价含完成该工作所需的人工，材料（含主材、辅材、周转材料），机械费（含机械的进出场费），措施费（安全文明施工费、季节性施工、临时设施、夜间施工、二次搬运等）、规费、税金等所有相关费用。","m",156,18,{"$f":"E7*F7","v":2808}]
[4,"DN20 PP-R给水管","1.材质及规格 ：DN20 PP-R给水管 1.25MPa  (GB/T18742-2002)\n2.连接形式 ：综合考虑\n3.铺设深度 ：符合设计要求\n4.管道检验及试验要求：按照《给水排水管道工程施工及验收规范》要求执行。\n5.综合单价含完成该工作所需的人工，材料（含主材、辅材、周转材料），机械费（含机械的进出场费），措施费（安全文明施工费、季节性施工、临时设施、夜间施工、二次搬运等）、规费、税金等所有相关费用。","m",52,19,{"$f":"E8*F8","v":988}]
[5,"DN25 PP-R给水管","1.材质及规格 ：DN25 PP-R给水管 1.25MPa  (GB/T18742-2002)\n2.连接形式 ：综合考虑\n3.铺设深度 ：符合设计要求\n4.管道检验及试验要求：按照《给水排水管道工程施工及验收规范》要求执行。\n5.综合单价含完成该工作所需的人工，材料（含主材、辅材、周转材料），机械费（含机械的进出场费），措施费（安全文明施工费、季节性施工、临时设施、夜间施工、二次搬运等）、规费、税金等所有相关费用。","m",152,21,3192]
[6,"DN32 PP-R给水管","1.材质及规格 ：DN32 PP-R给水管 1.25MPa  (GB/T18742-2002)\n2.连接形式 ：综合考虑\n3.铺设深度 ：符合设计要求\n4.管道检验及试验要求：按照《给水排水管道工程施工及验收规范》要求执行。\n5.综合单价含完成该工作所需的人工，材料（含主材、辅材、周转材料），机械费（含机械的进出场费），措施费（安全文明施工费、季节性施工、临时设施、夜间施工、二次搬运等）、规费、税金等所有相关费用。","m",17.2,22,378.4]
[7,"DN40 PP-R给水管","1.材质及规格 ：DN40 PP-R给水管 1.25MPa  (GB/T18742-2002)\n2.连接形式 ：综合考虑\n3.铺设深度 ：符合设计要求\n4.管道检验及试验要求：按照《给水排水管道工程施工及验收规范》要求执行。\n5.综合单价含完成该工作所需的人工，材料（含主材、辅材、周转材料），机械费（含机械的进出场费），措施费（安全文明施工费、季节性施工、临时设施、夜间施工、二次搬运等）、规费、税金等所有相关费用。","m",36,33,1188]
[8,"DN50 PP-R给水管","1.材质及规格 ：DN50 PP-R给水管 1.25MPa  (GB/T18742-2002)\n2.连接形式 ：综合考虑\n3.铺设深度 ：符合设计要求\n4.管道检验及试验要求：按照《给水排水管道工程施工及验收规范》要求执行。\n5.综合单价含完成该工作所需的人工，材料（含主材、辅材、周转材料），机械费（含机械的进出场费），措施费（安全文明施工费、季节性施工、临时设施、夜间施工、二次搬运等）、规费、税金等所有相关费用。","m",30,38,1140]
[9,"DN65 PP-R给水管","1.材质及规格 ：DN65 PP-R给水管 1.25MPa  (GB/T18742-2002)\n2.连接形式 ：综合考虑\n3.铺设深度 ：符合设计要求\n4.管道检验及试验要求：按照《给水排水管道工程施工及验收规范》要求执行。\n5.综合单价含完成该工作所需的人工，材料（含主材、辅材、周转材料），机械费（含机械的进出场费），措施费（安全文明施工费、季节性施工、临时设施、夜间施工、二次搬运等）、规费、税金等所有相关费用。","m",44,45,1980]
[10,"铜芯截止阀 DN50","1.种类 ：铜芯截止阀 DN50\n2.连接形式 ：综合考虑\n3.试验及施工要求：按照《给水排水管道工程施工及验收规范》要求执行。\n4.综合单价含完成该工作所需的人工，材料（含主材、辅材、周转材料），机械费（含机械的进出场费），措施费（安全文明施工费、季节性施工、临时设施、夜间施工、二次搬运等）、规费、税金等所有相关费用。","个",4,{"$f":"45+65","v":110},440]
[11,"闸阀 DN65","1.种类 ：闸阀 DN65\n2.连接形式 ：综合考虑\n3.试验及施工要求：按照《给水排水管道工程施工及验收规范》要求执行。\n4.综合单价含完成该工作所需的人工，材料（含主材、辅材、周转材料），机械费（含机械的进出场费），措施费（安全文明施工费、季节性施工、临时设施、夜间施工、二次搬运等）、规费、税金等所有相关费用。","套",4,{"$f":"155+45","v":200},800]
[12,"UPVC排水管DN50(壁厚2.0mm) ","1.材质及规格 ：UPVC排水管DN50(壁厚2.0mm) \n2.连接形式 ：综合考虑\n3.管道检验及试验要求：满足规范及验收要求。\n4.综合单价含完成该工作所需的人工，材料（含主材、辅材、周转材料），机械费（含机械的进出场费），措施费（安全文明施工费、季节性施工、临时设施、夜间施工、二次搬运等）、规费、税金等所有相关费用。","m",24.8,14,347.2]
[13,"UPVC排水管DN75(壁厚2.3mm) ","1.材质及规格 ：UPVC排水管DN75(壁厚2.3mm) \n2.连接形式 ：综合考虑\n3.管道检验及试验要求：满足规范及验收要求。\n4.综合单价含完成该工作所需的人工，材料（含主材、辅材、周转材料），机械费（含机械的进出场费），措施费（安全文明施工费、季节性施工、临时设施、夜间施工、二次搬运等）、规费、税金等所有相关费用。","m",10.6,25,265]
[14,"UPVC排水管DN100(壁厚4.5mm) ","1.材质及规格 ：UPVC排水管DN100(壁厚4.5mm)\n2.连接形式 ：综合考虑\n3.管道检验及试验要求：满足规范及验收要求。\n4.综合单价含完成该工作所需的人工，材料（含主材、辅材、周转材料），机械费（含机械的进出场费），措施费（安全文明施工费、季节性施工、临时设施、夜间施工、二次搬运等）、规费、税金等所有相关费用。","m",205.2,38,7797.6]
[15,"UPVC塑料地漏DN50","1.材质：UPVC塑料地漏\n2.规格：DN50\n3.综合单价含完成该工作所需的人工，材料（含主材、辅材、周转材料），机械费（含机械的进出场费），措施费（安全文明施工费、季节性施工、临时设施、夜间施工、二次搬运等）、规费、税金等所有相关费用。","个",20,35,700]
[16,"灭火器MF/ABC4*2","1.名称：每组两个(含灭火器放置箱)、灭火器放置箱 MF/ABC2\n2.放置位置；由现场指定\n3.未尽事宜满足设计及规范要求","组",4,230,920]
[17,"87型雨水斗（YD-100）","1.名称：雨水斗\n2.规格：（YD-100）\n3.安装位置：屋面\n4.未尽事宜满足设计及规范要求","个",16,50,800]
[18,"水龙头 DN15","1.名称：水龙头\n2.规格：DN15\n3.安装位置：详见设计\n4.材质：满足设计要求\n5.未尽事宜满足设计及规范要求","套",4,30,120]
[19,"小便器（小便器甲供）","1.小便器(感应阀)：安装高度：埋入式，采用图索引：09S304-104；非手动阀型号：HYTronic系列\n2.规格、类型 ：详见施工图纸\n3.组装形式 ：含全套五金配件\n4.卫生洁具的品牌及款式由业主方确定，但应符合使用功能和系统设置要求\n5.其它：未尽事宜满足设计及详国标12J926-J12-1、质量验收规范要求，详西南18J517-42-1","套",12,95,1140,null,null,{"v":0,"d":"0%"}]
[20,"无障碍小便器（小便器甲供）","1.无障碍小便器，便器自带水封，配感应式自闭冲洗阀\n2.规格、类型 ：详见施工图纸\n3.组装形式 ：含全套五金配件\n4.卫生洁具的品牌及款式由业主方确定，但应符合使用功能和系统设置要求\n5.其它：未尽事宜满足设计及详国标12J926-J12-1、质量验收规范要求，采用图索引：09S304-104","套",4,95,380,null,null,{"v":0,"d":"0%"}]
[21,"儿童坐便器（儿童坐便器甲供）","1.儿童坐便器\n2.规格、类型 ：详见施工图纸\n3.组装形式 ：含全套五金配件\n4.卫生洁具的品牌及款式由业主方确定，但应符合使用功能和系统设置要求\n5.详国标12J926-J13；便器自带水封\n6.其它：未尽事宜满足设计及现行技术、质量验收规范要求","套",4,70,280,null,null,{"v":0,"d":"0%"}]
[22,"坐便器（坐便器甲供）","1.坐便器\n2.规格、类型 ：详见施工图纸\n3.组装形式 ：含全套五金配件\n4.卫生洁具的品牌及款式由业主方确定，但应符合使用功能和系统设置要求\n5.详国标12J926-J10-3；坐便器角阀：安装高度：0.25m，采用图索引：09S304-72；非手动阀型号：DN15；便器自带水封\n6.其它：未尽事宜满足设计及现行技术、质量验收规范要求","套",16,70,1120,null,null,{"v":0,"d":"0%"}]
[23,"无障碍坐便器（坐便器甲供）","1.采用水箱冲洗式坐便器\n2.规格、类型 ：详见施工图纸\n3.组装形式 ：含全套五金配件\n4.卫生洁具的品牌及款式由业主方确定，但应符合使用功能和系统设置要求\n5.详国标12J926-J10-3；坐便器角阀：安装高度：0.25m，采用图索引：09S304-72；非手动阀型号：DN15；便器自带水封\n6.其它：未尽事宜满足设计及现行技术、质量验收规范要求","套",4,70,280,null,null,{"v":0,"d":"0%"}]
[24,"蹲便器（蹲便器甲供）","1.蹲便器\n2.规格、类型 ：详见施工图纸\n3.组装形式 ：含全套五金配件\n4.卫生洁具的品牌及款式由业主方确定，但应符合使用功能和系统设置要求\n5.详西南18J517-37-1；脚踏式蹲便器自闭阀：安装高度：0.25m，非手动阀型号：DN25；便器自带水封\n6.其它：未尽事宜满足设计及现行技术、质量验收规范要求","套",48,95,4560,null,null,{"v":0,"d":"0%"}]
[25,"无障碍立式洗手盆（洗手盆水龙头甲供）","1.无障碍立式洗手盆\n2.规格、类型 ：详见施工图纸及详国标12J926-J14\n3.组装形式 ：含全套五金配件、水龙头等\n4.卫生洁具的品牌及款式由业主方确定，但应符合使用功能和系统设置要求\n5.其它：未尽事宜满足设计及现行技术、质量验收规范要求","套",4,80,320,null,null,{"v":0,"d":"0%"}]
[26,"儿童洗手盆（洗手盆水龙头甲供）","1.儿童洗手盆\n2.规格、类型 ：详见施工图纸及详国标12J926-J14-2\n3.组装形式 ：含全套五金配件、水龙头：安装高度：0.45m，采用图索引：09S304-56；非手动阀型号：HYTronic系列\n4.卫生洁具的品牌及款式由业主方确定，但应符合使用功能和系统设置要求\n5.其它：未尽事宜满足设计及现行技术、质量验收规范要求","套",4,80,320,null,null,{"v":0,"d":"0%"}]
[27,"台式洗手盆（洗手盆及水龙头甲供）","1.儿童洗手盆\n2.规格、类型 ：详见施工图纸及详西南18J517-35-1\n3.组装形式 ：含全套五金配件、水龙头：安装高度：0.45m，采用图索引：09S304-56；非手动阀型号：HYTronic系列\n4.卫生洁具的品牌及款式由业主方确定，但应符合使用功能和系统设置要求\n5.其它：未尽事宜满足设计及现行技术、质量验收规范要求","套",12,80,960,null,null,{"v":0,"d":"0%"}]
[28,"成品拖布池（拖布池甲供）","1.名称：成品拖布池\n2.具体做法详西南18J517-53-3a\n3.其它：未尽事宜满足设计及现行技术、质量验收规范要求","套",4,35,140,null,null,{"v":0,"d":"0%"}]
[29,"地漏 DN50","1.名称：不锈钢地漏\n2.安装方式、材质：详设计\n3.型号、规格：DN50","套",8,30,240]
[30,"地漏 DN100","1.名称：不锈钢地漏\n2.安装方式、材质：详设计\n3.型号、规格：DN100","套",12,60,720]
["二、卫生间电气"]
[29,"AL照明配电箱","1.名称：AL照明配电箱 暗装, H=1.5M,IP54\n2.型号、规格 ：规格综合； \n3.包含工作内容：配电箱基础、接地、配电箱安装涉及的所有工作。\n4.材质、规格、零部件等详见设计图纸； \n5.其余做法：满足设计及现行施工技术、质量验收规范要求\n6.综合单价含完成该工作所需的人工，材料（含主材、辅材、周转材料），机械费（含机械的进出场费），措施费（安全文明施工费、季节性施工、临时设施、夜间施工、二次搬运等）、规费、税金等所有相关费用。","台",4,1500,{"$f":"E36*F36","v":6000}]
[30,"总等电位端子箱","1.名称：总等电位端子箱\n2.规格：LxWxD=350mmx100mmx50mm；暗装, H=0.4M ,详图集15D502,P28\n3.安装位置：详见图纸\n4.其余做法：满足设计及现行施工技术、质量验收规范要求","台",4,85,340]
[31,"安全型三孔暗装插座","1.名称：安全型三孔暗装插座\n2.规格：220V/10A；暗装, H=0.4M\n3.安装位置：详见图纸\n4.其余做法：满足设计及现行施工技术、质量验收规范要求","个",12,25,300]
[32,"安全型烘手器插座","1.名称：安全型烘手器插座\n2.规格：220V/10A；暗装, H=1.4M\n3.安装位置：详见图纸\n4.其余做法：满足设计及现行施工技术、质量验收规范要求","个",4,25,100]
[33,"接线盒","1.名称：接线盒\n2.规格：详见设计\n3.安装位置：详见图纸\n4.其余做法：满足设计及现行施工技术、质量验收规范要求\n5.智能洗手盆感应电源接线盒距地0.5m预留","个",12,10,120]
[34,"LED 吸顶灯","1.名称：LED 吸顶灯\n2.规格：1x24W；吸顶\n3.安装位置：详见图纸\n4.其余做法：满足设计及现行施工技术、质量验收规范要求","个",4,130,520]
[35,"灭蝇灯","1.名称：灭蝇灯\n2.规格：1x28W；暗装, H=2.0M\n3.安装位置：详见图纸\n4.其余做法：满足设计及现行施工技术、质量验收规范要求","个",8,130,1040]
[36,"单联单控开关","1.名称：单联单控开关\n2.规格：220V/10A；暗装, H=1.3M\n3.安装位置：详见图纸\n4.其余做法：满足设计及现行施工技术、质量验收规范要求","个",28,20,560]
[37,"三联开关","1.名称：三联开关\n2.规格：220V/10A；暗装, H=1.3M\n3.安装位置：详见图纸\n4.其余做法：满足设计及现行施工技术、质量验收规范要求","个",8,23,184]
[38,"无障碍呼叫报警器","1.名称：无障碍呼叫报警器\n2.规格：DC12V( 自带电池)；壁装, H=2.0M\n3.安装位置：详见图纸\n4.其余做法：满足设计及现行施工技术、质量验收规范要求","个",4,50,200]
[39,"BV-3x2.5","1.名称：电力电线； \n2.型号、规格、材质：BV-3x2.5；\n3.敷设方式 ：穿管、埋地、埋墙暗敷；\n4.具体做法：满足设计及现行施工技术、质量验收规范要求。\n5.综合单价含完成该工作所需的人工，材料（含主材、辅材、周转材料），机械费（含机械的进出场费），措施费（安全文明施工费、季节性施工、临时设施、夜间施工、二次搬运等）、规费、税金等所有相关费用。","m",1440,12.5,18000]
[40,"BV-3x4","1.名称：电力电线； \n2.型号、规格、材质：BV-3x4；\n3.敷设方式 ：穿管、埋地、埋墙暗敷；\n4.具体做法：满足设计及现行施工技术、质量验收规范要求。\n5.综合单价含完成该工作所需的人工，材料（含主材、辅材、周转材料），机械费（含机械的进出场费），措施费（安全文明施工费、季节性施工、临时设施、夜间施工、二次搬运等）、规费、税金等所有相关费用。","m",720,19,13680]
[41,"YJV-5x4","1.名称：电力电缆； \n2.型号、规格、材质：YJV-5x4；\n3.敷设方式 ：穿管、埋地、埋墙暗敷；\n4.具体做法：满足设计及现行施工技术、质量验收规范要求。\n5.综合单价含完成该工作所需的人工，材料（含主材、辅材、周转材料），机械费（含机械的进出场费），措施费（安全文明施工费、季节性施工、临时设施、夜间施工、二次搬运等）、规费、税金等所有相关费用。","m",168,25,4200]
[42,"刚性阻燃管 PC20","1.名称、材质、规格：刚性阻燃管 PC20\n2.具体做法：满足设计及现行施工技术、质量验收规范要求。\n3.综合单价含完成该工作所需的人工，材料（含主材、辅材、周转材料），机械费（含机械的进出场费），措施费（安全文明施工费、季节性施工、临时设施、夜间施工、二次搬运等）、规费、税金等所有相关费用。","m",2000,10,20000]
[43,"热镀锌 SC20","1.名称、材质、规格：镀锌钢管SC20\n2.具体做法：满足设计及现行施工技术、质量验收规范要求。\n3.综合单价含完成该工作所需的人工，材料（含主材、辅材、周转材料），机械费（含机械的进出场费），措施费（安全文明施工费、季节性施工、临时设施、夜间施工、二次搬运等）、规费、税金等所有相关费用。","m",200,20,4000]
[44,"热镀锌 SC25","1.名称、材质、规格：镀锌钢管SC25\n2.具体做法：满足设计及现行施工技术、质量验收规范要求。\n3.综合单价含完成该工作所需的人工，材料（含主材、辅材、周转材料），机械费（含机械的进出场费），措施费（安全文明施工费、季节性施工、临时设施、夜间施工、二次搬运等）、规费、税金等所有相关费用。","m",120,30,3600]
[45,"热镀锌 SC40","1.名称、材质、规格：镀锌钢管SC40\n2.具体做法：满足设计及现行施工技术、质量验收规范要求。\n3.综合单价含完成该工作所需的人工，材料（含主材、辅材、周转材料），机械费（含机械的进出场费），措施费（安全文明施工费、季节性施工、临时设施、夜间施工、二次搬运等）、规费、税金等所有相关费用。","m",160,40,6400]
["三、无障碍卫生间紧急呼叫系统"]
[47,"刚性阻燃管 PC20","1.名称、材质、规格：刚性阻燃管 PC20\n2.具体做法：满足设计及现行施工技术、质量验收规范要求。\n3.综合单价含完成该工作所需的人工，材料（含主材、辅材、周转材料），机械费（含机械的进出场费），措施费（安全文明施工费、季节性施工、临时设施、夜间施工、二次搬运等）、规费、税金等所有相关费用。","m",120,10,{"$f":"E54*F54","v":1200}]
[48,"WDZ-BYJ-(3x2.5)","1.名称：电力电线； \n2.型号、规格、材质：WDZ-BYJ-(3x2.5)；\n3.敷设方式 ：穿管、埋地、埋墙暗敷；\n4.具体做法：满足设计及现行施工技术、质量验收规范要求。\n5.综合单价含完成该工作所需的人工，材料（含主材、辅材、周转材料），机械费（含机械的进出场费），措施费（安全文明施工费、季节性施工、临时设施、夜间施工、二次搬运等）、规费、税金等所有相关费用。","m",360,2.5,{"$f":"E55*F55","v":900}]
[49,"RVS-4x1.5","1.名称：电力电线； \n2.型号、规格、材质：RVS-4x1.5；\n3.敷设方式 ：穿管、埋地、埋墙暗敷；\n4.具体做法：满足设计及现行施工技术、质量验收规范要求。\n5.综合单价含完成该工作所需的人工，材料（含主材、辅材、周转材料），机械费（含机械的进出场费），措施费（安全文明施工费、季节性施工、临时设施、夜间施工、二次搬运等）、规费、税金等所有相关费用。","m",24,8,{"$f":"E56*F56","v":192}]
[50,"应急呼叫按钮","1.名称：应急呼叫按钮\n2.安装高度：H=0.3米、0.9米\n3.具体做法：满足设计及现行施工技术、质量验收规范要求。","套",40,20,{"$f":"E57*F57","v":800}]
[51,"钥匙复位开关面板","1.名称：钥匙复位开关面板\n2.安装高度：详见设计要求\n3.具体做法：满足设计及现行施工技术、质量验收规范要求。","只",8,55,440]
[52,"声光报警装置","1.名称：声光报警装置\n2.安装位置：门头安装\n3.规格型号：满足设计要求\n4.具体做法：满足设计及现行施工技术、质量验收规范要求。","套",8,190,1520]
[53,"无障碍紧急呼叫系统控制器","1.名称：声光报警装置\n2.安装高度：H=1.8米\n3.规格型号：满足设计要求\n4.具体做法：满足设计及现行施工技术、质量验收规范要求。","套",24,50,1200]
["四、防雷接地系统"]
[54,"接地连接板 100×50×10mm","1.名称：接地连接板 100×50×10mm\n2.位置：详见图纸\n3.其它：具体做法详见设计施工图，未尽事宜满足设计及现行技术、质量验收规范要求","个",4,25,100]
[55,"φ12圆钢筋均压环","1.名称：φ12圆钢筋均压环\n2.位置：详见图纸\n3.与主体引出线焊接,焊接长度不小于100mm\n4.角钢与连接钢片（连通均压环和柔性铜导线）\n5.其它：具体做法详见设计施工图，未尽事宜满足设计及现行技术、质量验收规范要求","m",52.76,20,1055.2]
["五、通风系统"]
[56,"排风机","1.型号：HTFC-I-9\n2.参数：L=4160m3/h H=468Pa N=1.1kw  n=1300rpm 噪声 60dB W=89Kg\n3.位置：详见设计图纸\n4.固定方式综合考虑\n5.其它：具体做法详见设计施工图，未尽事宜满足设计及现行技术、质量验收规范要求","台",4,1200,{"$f":"F65*E65","v":4800}]
[57,"单层百叶风口（带调节阀）;200X200","1.名称：单层百叶风口（带调节阀）;200X200\n2.位置：详见设计图纸\n3.其它：具体做法详见设计施工图，未尽事宜满足设计及现行技术、质量验收规范要求","个",68,60,{"$f":"F66*E66","v":4080}]
[58,"防雨百叶风口700X700","1.名称：防雨百叶风口700X700\n2.位置：详见设计图纸\n3.其它：具体做法详见设计施工图，未尽事宜满足设计及现行技术、质量验收规范要求","个",4,280,1120]
[59,"XZP-100型消声器","1.名称：XZP-100型消声器\n2.位置：详见设计图纸\n3.其它：具体做法详见设计施工图，未尽事宜满足设计及现行技术、质量验收规范要求","个",8,750,6000]
[60,"250*200mm热镀锌风管","1.名称：250*200mm热镀锌风管，0.5mm厚\n2.位置：详见设计图纸\n3.固定方式综合考虑\n4.其它：具体做法详见设计施工图，未尽事宜满足设计及现行技术、质量验收规范要求\n5.风管连接:通风风管长边大于2000mm的采用角钢法兰连接,长边小于等于2000mm的可采用共板法兰或角钢法兰连接。法兰垫片的材料采用不燃材料制作。\n6.风管材料:通风系统风管采用热镀锌钢板制作,板材最小厚度根据风管断面长边尺寸和系统工作压力选定,需符合《通风与空调工程施工质量验收规收规范》GB 50423-2016第4.2.3、4.2.4条及《通风与空调工程施工规范》GB50738-2011 第4.1.6条、5.1.2条要求。风管配件、钢板厚度、允许漏风量、风管间连接及加固等均应符合《通风和空调工程施工质量验收规范》GB 50423-2016中的规定。","m",73.6,{"$f":"(0.25+0.2)*2*180","v":162},11923.2]
[61,"800*200mm热镀锌风管","1.名称：800*200mm热镀锌风管，0.75mm厚\n2.位置：详见设计图纸\n3.固定方式综合考虑\n4.其它：具体做法详见设计施工图，未尽事宜满足设计及现行技术、质量验收规范要求\n5.风管连接:通风风管长边大于2000mm的采用角钢法兰连接,长边小于等于2000mm的可采用共板法兰或角钢法兰连接。法兰垫片的材料采用不燃材料制作。\n6.风管材料:通风系统风管采用热镀锌钢板制作,板材最小厚度根据风管断面长边尺寸和系统工作压力选定,需符合《通风与空调工程施工质量验收规收规范》GB 50423-2016第4.2.3、4.2.4条及《通风与空调工程施工规范》GB50738-2011 第4.1.6条、5.1.2条要求。风管配件、钢板厚度、允许漏风量、风管间连接及加固等均应符合《通风和空调工程施工质量验收规范》GB 50423-2016中的规定。","m",9.6,{"$f":"(0.8+0.2)*2*180","v":360},3456]
[62,"630*200mm热镀锌风管","1.名称：630*200mm热镀锌风管，0.6mm厚\n2.位置：详见设计图纸\n3.固定方式综合考虑\n4.其它：具体做法详见设计施工图，未尽事宜满足设计及现行技术、质量验收规范要求\n5.风管连接:通风风管长边大于2000mm的采用角钢法兰连接,长边小于等于2000mm的可采用共板法兰或角钢法兰连接。法兰垫片的材料采用不燃材料制作。\n6.风管材料:通风系统风管采用热镀锌钢板制作,板材最小厚度根据风管断面长边尺寸和系统工作压力选定,需符合《通风与空调工程施工质量验收规收规范》GB 50423-2016第4.2.3、4.2.4条及《通风与空调工程施工规范》GB50738-2011 第4.1.6条、5.1.2条要求。风管配件、钢板厚度、允许漏风量、风管间连接及加固等均应符合《通风和空调工程施工质量验收规范》GB 50423-2016中的规定。","m",12,{"$f":"(0.63+0.2)*2*180","v":298.8},3585.6]
[63,"500*200mm热镀锌风管","1.名称：500*200mm热镀锌风管，0.6mm厚\n2.位置：详见设计图纸\n3.固定方式综合考虑\n4.其它：具体做法详见设计施工图，未尽事宜满足设计及现行技术、质量验收规范要求\n5.风管连接:通风风管长边大于2000mm的采用角钢法兰连接,长边小于等于2000mm的可采用共板法兰或角钢法兰连接。法兰垫片的材料采用不燃材料制作。\n6.风管材料:通风系统风管采用热镀锌钢板制作,板材最小厚度根据风管断面长边尺寸和系统工作压力选定,需符合《通风与空调工程施工质量验收规收规范》GB 50423-2016第4.2.3、4.2.4条及《通风与空调工程施工规范》GB50738-2011 第4.1.6条、5.1.2条要求。风管配件、钢板厚度、允许漏风量、风管间连接及加固等均应符合《通风和空调工程施工质量验收规范》GB 50423-2016中的规定。","m",6.8,{"$f":"(0.5+0.2)*2*180","v":252},1713.6]
[64,"320*200mm热镀锌风管","1.名称：320*200mm热镀锌风管，0.5mm厚\n2.位置：详见设计图纸\n3.固定方式综合考虑\n4.其它：具体做法详见设计施工图，未尽事宜满足设计及现行技术、质量验收规范要求\n5.风管连接:通风风管长边大于2000mm的采用角钢法兰连接,长边小于等于2000mm的可采用共板法兰或角钢法兰连接。法兰垫片的材料采用不燃材料制作。\n6.风管材料:通风系统风管采用热镀锌钢板制作,板材最小厚度根据风管断面长边尺寸和系统工作压力选定,需符合《通风与空调工程施工质量验收规收规范》GB 50423-2016第4.2.3、4.2.4条及《通风与空调工程施工规范》GB50738-2011 第4.1.6条、5.1.2条要求。风管配件、钢板厚度、允许漏风量、风管间连接及加固等均应符合《通风和空调工程施工质量验收规范》GB 50423-2016中的规定。","m",24.4,{"$f":"(0.32+0.2)*2*180","v":187.2},4567.68]
[65,"200*250mm风管蝶阀","1.名称：200*250mm风管蝶阀\n2.位置：详见设计图纸\n3.固定方式综合考虑\n4.其它：具体做法详见设计施工图，未尽事宜满足设计及现行技术、质量验收规范要求\n5.风管连接:通风风管长边大于2000mm的采用角钢法兰连接,长边小于等于2000mm的可采用共板法兰或角钢法兰连接。法兰垫片的材料采用不燃材料制作。\n6.风管材料:通风系统风管采用热镀锌钢板制作,板材最小厚度根据风管断面长边尺寸和系统工作压力选定,需符合《通风与空调工程施工质量验收规收规范》GB 50423-2016第4.2.3、4.2.4条及《通风与空调工程施工规范》GB50738-2011 第4.1.6条、5.1.2条要求。风管配件、钢板厚度、允许漏风量、风管间连接及加固等均应符合《通风和空调工程施工质量验收规范》GB 50423-2016中的规定。","个",12,110,1320]
[66,"800*630*250三通风管","1.名称：800*630*250三通风管\n2.位置：详见设计图纸\n3.固定方式综合考虑\n4.其它：具体做法详见设计施工图，未尽事宜满足设计及现行技术、质量验收规范要求\n5.风管连接:通风风管长边大于2000mm的采用角钢法兰连接,长边小于等于2000mm的可采用共板法兰或角钢法兰连接。法兰垫片的材料采用不燃材料制作。\n6.风管材料:通风系统风管采用热镀锌钢板制作,板材最小厚度根据风管断面长边尺寸和系统工作压力选定,需符合《通风与空调工程施工质量验收规收规范》GB 50423-2016第4.2.3、4.2.4条及《通风与空调工程施工规范》GB50738-2011 第4.1.6条、5.1.2条要求。风管配件、钢板厚度、允许漏风量、风管间连接及加固等均应符合《通风和空调工程施工质量验收规范》GB 50423-2016中的规定。","个",4,500,2000]
[67,"630*500*250三通风管","1.名称：630*500*250三通风管\n2.位置：详见设计图纸\n3.固定方式综合考虑\n4.其它：具体做法详见设计施工图，未尽事宜满足设计及现行技术、质量验收规范要求\n5.风管连接:通风风管长边大于2000mm的采用角钢法兰连接,长边小于等于2000mm的可采用共板法兰或角钢法兰连接。法兰垫片的材料采用不燃材料制作。\n6.风管材料:通风系统风管采用热镀锌钢板制作,板材最小厚度根据风管断面长边尺寸和系统工作压力选定,需符合《通风与空调工程施工质量验收规收规范》GB 50423-2016第4.2.3、4.2.4条及《通风与空调工程施工规范》GB50738-2011 第4.1.6条、5.1.2条要求。风管配件、钢板厚度、允许漏风量、风管间连接及加固等均应符合《通风和空调工程施工质量验收规范》GB 50423-2016中的规定。","个",4,350,1400]
[68,"500*320*250三通风管","1.名称：500*320*250三通风管\n2.位置：详见设计图纸\n3.固定方式综合考虑\n4.其它：具体做法详见设计施工图，未尽事宜满足设计及现行技术、质量验收规范要求\n5.风管连接:通风风管长边大于2000mm的采用角钢法兰连接,长边小于等于2000mm的可采用共板法兰或角钢法兰连接。法兰垫片的材料采用不燃材料制作。\n6.风管材料:通风系统风管采用热镀锌钢板制作,板材最小厚度根据风管断面长边尺寸和系统工作压力选定,需符合《通风与空调工程施工质量验收规收规范》GB 50423-2016第4.2.3、4.2.4条及《通风与空调工程施工规范》GB50738-2011 第4.1.6条、5.1.2条要求。风管配件、钢板厚度、允许漏风量、风管间连接及加固等均应符合《通风和空调工程施工质量验收规范》GB 50423-2016中的规定。","个",4,300,1200]
[69,"320*250直通风管","1.名称：320*250直通风管\n2.位置：详见设计图纸\n3.固定方式综合考虑\n4.其它：具体做法详见设计施工图，未尽事宜满足设计及现行技术、质量验收规范要求\n5.风管连接:通风风管长边大于2000mm的采用角钢法兰连接,长边小于等于2000mm的可采用共板法兰或角钢法兰连接。法兰垫片的材料采用不燃材料制作。\n6.风管材料:通风系统风管采用热镀锌钢板制作,板材最小厚度根据风管断面长边尺寸和系统工作压力选定,需符合《通风与空调工程施工质量验收规收规范》GB 50423-2016第4.2.3、4.2.4条及《通风与空调工程施工规范》GB50738-2011 第4.1.6条、5.1.2条要求。风管配件、钢板厚度、允许漏风量、风管间连接及加固等均应符合《通风和空调工程施工质量验收规范》GB 50423-2016中的规定。","个",4,200,800]
["合  计",{"$nulls":5},{"$f":"SUM(G5:G78)","v":186041.48}]

{"sheet":"品牌品质要求","index":3,"n_rows":45,"n_cols":4,"rows_kept":45,"merged":[[0,0,0,3],[23,0,23,3]]}
["主要材料材质标准或技术标准要求"]
["序号","材料设备名称","材质标准或技术标准要求","备注"]
[1,"防水材料"]
[1.1,"SBS改性沥青防水卷材","满足《弹性体改性沥青防水卷材》（GB18242-2008）等现行国家标准的各项性能、技术标准要求；带出厂检验书、产品合格证。"]
[1.2,"SBS聚胎脂改性沥青耐根刺防水卷材(Ⅱ)型","满足《预铺防水卷材》（GB/T23457-2017）等现行国家标准的各项性能、技术标准要求；带出厂检验书、产品合格证。"]
[1.3,"双面自粘高分子防水卷材","满足《弹性体改性沥青防水卷材》（GB18242-2008）等现行国家标准的各项性能、技术标准要求；带出厂检验书、产品合格证。"]
[1.4,"JS（Ⅱ型）水泥聚合物防水涂料","满足《聚合物水泥防水涂料》（GB/T 23445-2009）等现行国家标准的各项性能、技术标准要求；带出厂检验书、产品合格证。"]
[2,"门、窗、栏杆"]
[2.1,"成品木门","满足《木门分类和通用技术要求》（GB/T 35379-2017）、《 木门窗用木材及人造板规范》（GB/T 34742-2017）、《木门窗》（GB/T 29498-2013）等现行国家标准的各项性能、技术标准要求；带出厂检验书、产品合格证。"]
[2.2,"断桥铝合金门窗","满足《铝合金门窗》（GB/T 8478-2008）、《建筑门窗五金件 通用要求》（GB/T 32223-2015）、《建筑门窗、幕墙用密封胶条》（GB/T 24498-2009）、《建筑幕墙、门窗通用技术条件》（GB/T 31433-2015）、《铝合金建筑型材 第6部分：隔热型材》（GB/T 5237.6-2017）等现行国家标准的各项性能、技术标准要求；带出厂检验书、产品合格证。"]
[2.3,"玻璃","满足《玻璃幕墙工程技术规范》(JGJ 102-2003)、《建筑玻璃应用技术规程》（JGJ113-2015）、《建筑安全玻璃管理规定》发改运行[2003]2116号等现行国家标准的各项性能、技术标准要求；带出厂检验书、产品合格证。"]
[2.4,"玻璃幕墙","满足《玻璃幕墙光热性能》（GB/T 18091-2015）、《建筑幕墙、门窗通用技术条件》（GB/T 31433-2015）等现行国家标准的各项性能、技术标准要求；带出厂检验书、产品合格证。"]
[3,"墙、地面材料"]
[3.1,"地砖","满足《陶瓷砖》（GB 4100-2015）、《防滑陶瓷砖》（GB/T 35153-2017）等现行国家标准的各项性能、技术标准要求；带出厂检验书、产品合格证。"]
[3.2,"墙面砖","满足《陶瓷砖》（GB 4100-2015）、《防滑陶瓷砖》（GB/T 35153-2017）等现行国家标准的各项性能、技术标准要求；带出厂检验书、产品合格证。"]
[3.3,"防静电地板","满足《防静电活动地板通用规范》（GB/T 36340-2018）等现行国家标准的各项性能、技术标准要求；带出厂检验书、产品合格证。"]
[3.4,"乳胶漆","满足GB/T9756—2018《合成树脂乳液内墙涂料》等现行国家标准的各项性能、技术标准要求；带出厂检验书、产品合格证。"]
[3.5,"无机涂料","满足《合成树脂乳液内墙涂料》（GB/T 9756-2018）、《合成树脂乳液外墙涂料》（GB/T 9755-2014）、《溶剂型外墙涂料》（GB/T 9757-2001）等现行国家标准的各项性能、技术标准要求；带出厂检验书、产品合格证。"]
[3.6,"铝板","满足《建筑装饰用铝板》（GB/T 23443-2009）等现行国家标准的各项性能、技术标准要求；带出厂检验书、产品合格证。"]
[3.7," 纤维水泥外墙装饰板","满足《纤维增强水泥外墙装饰挂板》（JC T 2085-2011）等现行国家标准的各项性能、技术标准要求；带出厂检验书、产品合格证。"]
[4,"吊顶装饰材料"]
[4.1,"纸面石膏板","满足《纸面石膏板》（GB/T 9775-2008）等现行国家标准的各项性能、技术标准要求，满足消防的耐火极限要求"]
[4.2,"铝扣板","满足《建筑装饰用铝单板》（GB/T 23443-2009）等现行国家标准的各项性能、技术标准要求；带出厂检验书、产品合格证。"]
["主要材料最低品质标准要求表"]
["序号","材料设备名称","最低品质标准要求","备注"]
[1,"门、窗、玻璃"]
[1.1,"成品木门","不低于美心、TATA、王力品牌品质要求"]
[1.2,"断桥铝合金门窗","不低于圣保罗、坚美门窗、中旺铝业的品牌品质要求"]
[1.3,"玻璃","不低于台玻、南玻、耀华的品牌品质要求"]
[2,"墙、地面材料"]
[2.1,"地砖","不低于东鹏、冠珠、新中源的品牌品质要求"]
[2.2,"墙砖","不低于东鹏、冠珠、新中源的品牌品质要求"]
[2.3,"乳胶漆","不低于立邦、多乐士、三棵树的品牌品质要求"]
[2.4,"无机涂料","不低于立邦、多乐士、三棵树的品牌品质要求"]
[3,"吊顶、天棚装饰材料"]
[1,"纸面石膏板","不低于龙牌、可耐福、杰科、泰山的品牌品质要求"]
[2,"铝扣板","不低于奥普、友邦、顶上、品格、楚楚的品牌品质要求"]
[4,"电气设备及材料"]
[4.1,"开关插座","不低于西门子、飞雕、正泰、德力西的品牌品质要求"]
[4.2,"电线电缆","不低于塔牌电缆、熊猫电缆、鸿鑫国泰的品牌品质要求"]
[4.3,"灯具","不低于三雄极光、欧普、德力西的品牌品质要求"]
[4.4,"LED光源","不低于欧普 飞利浦 雷士的品牌品质要求"]
[4.5,"高低压开关柜、配电箱","元器件"]
[5,"洁具"]
[5.1,"洁具、卫具（甲供）","不低于法恩莎、箭牌、帝王的品牌品质要求"]